Cogmind - Beta 14 @@@ ROGUE MODE // 2024.08.10 @ 22:23:16 Player: A Moose Result: Destroyed by GC-L3X(R) with Subdweller Machine Gun Performance ------------- Evolutions (0) 0 Regions Visited (2) 400 Robots Destroyed (12) 60 Value Destroyed (356) 356 Prototype IDs (2) 40 Alien Tech Used (0) 0 Bonus (0) 0 TOTAL SCORE: 856 Bonus ------- None Cogmind --------- Core Integrity 0/250 Matter 118/300 Energy 100/100 System Corruption 3% Temperature Cool (0) Movement Rolling (125) Ox3 Location -10/Subcaves Parts ------- > --- POWER (1) -------- (None) > --- PROPULSION (2) --- Wheel > --- UTILITY (2) ------ High-capacity Storage Unit > --- WEAPON (2) ------- (None) > --- INVENTORY (20) --- Light Ion Engine Light Ion Engine Subdweller Power Source Light Treads Light Treads Disposable Heat Sink High-capacity Storage Unit Subdweller Laser Datajack Datajack Scrap Shield Fragment (36) Peak State ------------ > --- POWER ------------ Ion Engine > --- PROPULSION ------- Wheel Compact Wheel > --- UTILITY ---------- High-capacity Storage Unit Improved Terrain Scanner > --- WEAPON ----------- Medium Laser Light Assault Rifle > --- INVENTORY -------- Light Ion Engine Light Ion Engine Light Treads Light Treads Wheel Compact Wheel High-capacity Storage Unit EM Pulse Gun Grenade Launcher Datajack [Rating: 10] Favorites ----------- Power Light Ion Engine Engine Light Ion Engine Propulsion Compact Wheel Wheel Compact Wheel Utility High-capacity Storage Unit Device Improved Terrain Scanner Storage High-capacity Storage Unit Weapon Medium Laser Energy Gun Medium Laser Ballistic Gun Light Assault Rifle Launcher Grenade Launcher Build | -11 -10 -10 ------- Run | Yrd Mat Sub Slots Evolved . | . . . Power . | . . . Propulsion . | . . . Utility . | . . . Weapon . | . . . Parts Attached 20 | 6 9 5 Power 2 | 1 1 . Engine 2 | 1 1 . Core . | . . . Reactor . | . . . Propulsion 6 | 2 . 4 Treads . | . . . Leg . | . . . Wheel 6 | 2 . 4 Hover . | . . . Flight . | . . . Utility 3 | 1 2 . Device 1 | . 1 . Storage 2 | 1 1 . Processor . | . . . Hackware . | . . . Protection . | . . . Artifact . | . . . Weapon 9 | 2 6 1 Energy Gun 3 | 1 2 . Energy Cannon . | . . . Ballistic Gun 2 | 1 1 . Ballistic Cannon . | . . . Launcher 4 | . 3 1 Special Weapon . | . . . Impact Weapon . | . . . Slashing Weapon . | . . . Piercing Weapon . | . . . Special Melee Weapon . | . . . Unidentified Prototypes . | . . . Parts Lost 11 | . 2 9 Power 2 | . 1 1 Propulsion 5 | . . 5 Utility 1 | . . 1 Weapon 3 | . 1 2 Highest Loss Streak 7 | . 2 7 To Critical Strikes . | . . . Average Slot Usage (%) 84 | . 90 80 Engine 14 | . 14 14 Wheel 27 | . 28 26 Device 8 | . 6 10 Storage 14 | . 14 14 Energy Gun 12 | . 15 10 Ballistic Gun 1 | . 3 . Launcher 4 | . 6 3 Peak Build Rating 10 | 6 10 10 Average Rating 7 | 3 7 7 On Entrance 4 | . 6 8 Naked Turns . | . . . Heaviest Build 51 | 13 51 49 Greatest Support 30 | 26 26 30 Greatest Overweight (x) 4 | . 1 4 Average Overweight (x) . | . . 1 Largest Inventory Capacity 20 | 8 20 20 Average Capacity 16 | 7 14 20 Most Carried 12 | 5 11 12 Average Carried 8 | 3 8 9 Final Capacity 20 | 8 20 20 Final Carried 11 | 4 9 11 Class Distribution -------------------- 100% | Mutant Dominant Class ---------------- Mutant | -10/Materials Mutant | -10/Subcaves Resources | -11 -10 -10 ----------- Run | Yrd Mat Sub Matter Collected 336 | 244 66 26 Remotely . | . . . Salvage Created 206 | . 163 43 Parts 20 | . 14 6 Haulers Intercepted . | . . . Recyclers Shooed . | . . . Parts Field Recycled . | . . . Retrieved Matter . | . . . Parts Self-Destructed 5 | . . 5 Prevented . | . . . Kills | -11 -10 -10 ------- Run | Yrd Mat Sub Combat Hostiles Destroyed 7 | . 6 1 Guns 4 | . 3 1 AOE 3 | . 3 . Classes Destroyed 5 | . 4 1 Builder 2 | . 2 . Tunneler 1 | . 1 . Watcher 2 | . 2 . Grunt 6 | . 6 . Subdweller 1 | . . 1 Best Kill Streak 5 | . 5 1 Combat Bots Only 3 | . 3 1 Max Kills in Single Turn 2 | . 2 1 Gunslinging . | . . . Exploded 1 | . 1 . Melee . | . . . Uniques/NPCs Destroyed . | . . . Combat | -11 -10 -10 -------- Run | Yrd Mat Sub Hostile Shots Fired 70 | . 35 35 Missed 28 | . 14 14 Damage Taken 810 | . 340 470 Core 252 | . 102 150 Absorbed by Shields . | . . . Core Remaining (%) 100 | 100 . . Volleys Fired 26 | . 19 7 Largest 2 | . 2 2 Hottest 90 | . 90 80 Shots Fired 50 | . 38 12 Gun 34 | . 27 7 Cannon . | . . . Launcher 16 | . 11 5 Special . | . . . Kinetic 3 | . 3 . Thermal 23 | . 16 7 Explosive 16 | . 11 5 Electromagnetic 8 | . 8 . Robot Hit Streak 6 | . 6 5 Robot Miss Streak 3 | . 3 1 Penetration Max . | . . . Secondary Targets 2 | . 2 . Max Gunslinging Chain 1 | . 1 . Shots Hit Robots 25 | . 23 2 Core Hits 23 | . 22 1 Critical Kills . | . . . Critical Parts Destroyed . | . . . Critical Strikes 1 | . 1 . Burn 1 | . 1 . Melee Attacks . | . . . Impact . | . . . Slashing . | . . . Piercing . | . . . Sneak Attacks . | . . . Combat Hostiles . | . . . Follow-up Attacks . | . . . Damage Inflicted 1012 | . 986 26 Guns 240 | . 214 26 Cannons . | . . . Explosions 772 | . 772 . Melee . | . . . Ramming . | . . . Kinetic . | . . . Thermal 237 | . 211 26 Explosive 690 | . 690 . Electromagnetic 85 | . 85 . Impact . | . . . Slashing . | . . . Piercing . | . . . Highest Corruption 3 | . 3 3 Average Corruption 2 | . 2 3 Corruption Purged . | . . . Corruption Blocked . | . . . Effects 10 | . 2 8 Message Errors 2 | . . 2 Matter Fused 1 | . 1 . Heat Flow Errors 3 | . . 3 Energy Discharges 2 | . 1 1 Data Loss (minor) 1 | . . 1 Data Loss (major) 1 | . . 1 Overload Shots . | . . . Overflow Damage 52 | . 52 . Projectiles . | . . . Explosions 52 | . 52 . Melee . | . . . Knockbacks . | . . . Impact . | . . . Kinetic . | . . . Secondary . | . . . Self-Inflicted Damage 81 | . 69 12 Shots 4 | . 3 1 Rammed . | . . . Targets Rammed . | . . . Kicked . | . . . Crushed . | . . . Highest Temperature 255 | . 180 255 Average Temperature 73 | . 66 105 Received Heat Transfer 198 | . 156 42 Siege Activations . | . . . Robots Corrupted . | . . . Combat Hostiles . | . . . Parts Fried . | . . . Impact Corruptions . | . . . Robots Melted . | . . . Combat Hostiles . | . . . Parts Melted . | . . . Heat Transferred 568 | . 494 74 Parts Sabotaged . | . . . Parts Stolen . | . . . Parts Stripped . | . . . Power Chain Reactions . | . . . Alert | -11 -10 -10 ------- Run | Yrd Mat Sub Peak Influence 412 | . 412 . Initial . | . . . Average 147 | . 171 . Maximum Alert Level 2 | . 2 . Low Security (%) 81 | 100 78 . Level 1 16 | . 19 . Level 2 1 | . 1 . Level 3 . | . . . Level 4 . | . . . Level 5 . | . . . High Security . | . . . Max Security . | . . . Squads Dispatched 1 | . 1 . Investigation 1 | . 1 . Extermination . | . . . Reinforcement . | . . . Assault . | . . . Garrison . | . . . Intercept . | . . . Searches Triggered . | . . . Construction Impeded . | . . . Haulers Reinforced . | . . . Active Scanning Responses . | . . . Cargo Convoy Interrupts . | . . . Stealth | -11 -10 -10 --------- Run | Yrd Mat Sub Distress Signals 3 | . 3 . Communications Jammed . | . . . Distress Signals . | . . . Times Spotted 16 | . 12 4 Peak Tracking Total 6 | . 6 3 Tactical Retreats 1 | . 1 . Traps | -11 -10 -10 ------- Run | Yrd Mat Sub Traps Triggered 3 | . 3 . Indirectly . | . . . Trap Hack Attempts . | . . . Triggered . | . . . Disarmed . | . . . Reprogrammed . | . . . Reused . | . . . Traps Extracted . | . . . Installed . | . . . Triggered . | . . . Machines | -11 -10 -10 ---------- Run | Yrd Mat Sub Machines Disabled 5 | . 5 . Max in Single Turn 2 | . 2 . Machines Repaired . | . . . Machines Dismantled . | . . . Machines Sabotaged . | . . . Overloaded Fab Kills . | . . . Hacking | -11 -10 -10 --------- Run | Yrd Mat Sub Machines Accessed 4 | . 3 1 Terminals 3 | . 3 . Fabricators . | . . . Repair Stations . | . . . Recycling Units . | . . . Scanalyzers . | . . . Garrison Access . | . . . Total Hacks 18 | . 14 4 Successful 12 | . 8 4 Failed 6 | . 6 . Catastrophic . | . . . Database Lockouts . | . . . Manual 10 | . 10 . Terminals 14 | . 14 . Fabricators . | . . . Repair Stations . | . . . Recycling Units . | . . . Scanalyzers . | . . . Garrison Access . | . . . Terminal Hacks 9 | . 5 4 Record 4 | . . 4 Robot Analysis 2 | . 2 . Prototype ID Bank 1 | . 1 . Branch Access Points 1 | . 1 . Zone Layout 1 | . 1 . Fabricator Hacks . | . . . Repair Station Hacks . | . . . Recycling Unit Hacks . | . . . Scanalyzer . | . . . Garrison Access Hacks . | . . . Unauthorized Hacks 3 | . 3 . Terminals 3 | . 3 . Track 1 | . 1 . Botnet 2 | . 2 . Fabricators . | . . . Repair Stations . | . . . Recycling Units . | . . . Scanalyzers . | . . . Garrison Access . | . . . Data Cores Recovered . | . . . Used . | . . . Hacking Detections 3 | . 3 . Full Trace Events 2 | . 2 . Feedback Events . | . . . Feedback Blocked . | . . . Robot Schematics Acquired . | . . . Robots Built . | . . . Authchips . | . . . Time . | . . . Total Robot Build Rating . | . . . Part Schematics Acquired . | . . . Parts Built . | . . . Authchips . | . . . Time . | . . . Total Part Build Rating . | . . . Parts Repaired . | . . . Time . | . . . Parts Recycled . | . . . Recycled Matter . | . . . Retrieved Matter . | . . . Retrieved Components . | . . . Parts Scanalyzed . | . . . Part Schematics Acquired . | . . . Parts Damaged . | . . . Bothacking | -11 -10 -10 ------------ Run | Yrd Mat Sub Used RIF Installer . | . . . Robots Hacked . | . . . Non-combat . | . . . Combat . | . . . Robot Hacks Applied . | . . . Relay Couplers Released . | . . . Fabnet Peak Effective % . | . . . Robots Rewired . | . . . Allies Hacked . | . . . Hacks Repelled . | . . . Allies | -11 -10 -10 -------- Run | Yrd Mat Sub Total Allies . | . . . Largest Group . | . . . Highest-Rated Group . | . . . Highest-Rated Ally . | . . . Total Orders . | . . . Ally Attacks . | . . . Total Damage . | . . . Kills . | . . . Allies Corrupted . | . . . Allies Melted . | . . . Intel | -11 -10 -10 ------- Run | Yrd Mat Sub Robot Analysis Total 2 | . 2 . Derelict Logs Recovered 1 | . . 1 Drone Launches . | . . . Drone Recoveries . | . . . Exploration | -11 -10 -10 ------------- Run | Yrd Mat Sub Turns Passed 737 | 47 298 392 Spaces Moved 580 | 38 215 327 Core 8 | 8 . . Treads . | . . . Legs . | . . . Wheels 572 | 30 215 327 Hover . | . . . Flight . | . . . Fastest Speed 50 | 50 90 105 Average Speed 101 | 83 96 107 Slowest Speed 140 | 100 105 140 Overloaded Moves . | . . . Propulsion Burnouts . | . . . Robots Hopped . | . . . Cave-ins Triggered . | . . . Exploration Rate (%) 31 | 3 49 42 Regions Visited 2 Branch Regions 1 Pre-discovered Areas 1 | . . 1 Known Exits Taken . | . . . Unknown Exits Taken 2 | 1 1 . Scrap Searched . | . . . Spaces Dug . | . . . Terrain Destroyed 128 | . 109 19 Melee . | . . . Projectile . | . . . AOE 128 | . 109 19 Terrain Rammed . | . . . Walls Destroyed . | . . . Machines Disabled . | . . . Actions | -11 -10 -10 --------- Run | Yrd Mat Sub Total 675 | 53 266 356 Wait 23 | . 13 10 Move 578 | 37 214 327 Hop . | . . . Pick Up 26 | 10 9 7 Fast Attach . | . . . Attach 15 | 6 4 5 Detach 1 | . 1 . Swap 5 | . 5 . Drop 1 | . 1 . Fire 26 | . 19 7 Melee . | . . . Ram . | . . . Kick . | . . . Crush . | . . . Escape Stasis . | . . . Rewire . | . . . Trap . | . . . Miscellaneous . | . . . Route ------- -11/Scrapyard -10/Materials (discovered 4 exits: [*Mat x2] / Min / *Sub) -10/Subcaves History --------- Turn | Location | Event 19 | -11/Scrapyard | Discovered new exit (range 15) 48 | -11/Scrapyard | Entered Materials 155 | -10/Materials | Discovered new exit (range 15) 251 | -10/Materials | Discovered new exit (range 5) 258 | -10/Materials | Identified exit to Mines 316 | -10/Materials | Build established: Mutant 320 | -10/Materials | Discovered new exit (range 4) 346 | -10/Materials | Entered Subcaves 393 | -10/Subcaves | Learned Materials stockpile data 422 | -10/Subcaves | Visited Clippyterm 425 | -10/Subcaves | Learned location of Section 7 (-2) 630 | -10/Subcaves | A Subdweller sparked back to life 630 | -10/Subcaves | A Subdweller sparked back to life 630 | -10/Subcaves | A Subdweller sparked back to life 649 | -10/Subcaves | Core integrity fell below 50% 679 | -10/Subcaves | Lost 7 parts (4n1u2w) 696 | -10/Subcaves | Shifting Twisted Machinery released Sub. Laser 703 | -10/Subcaves | Shifting Twisted Machinery released Sub. Power Source 737 | -10/Subcaves | Core integrity fell below 20% 738 | -10/Subcaves | Destroyed by GC-L3X(R) with Subdweller Machine Gun Last Messages --------------- Imp. Terrain Scanner destroyed. Grenade Launcher destroyed. Wheel destroyed. Com. Wheel destroyed. Subatomizers dissect the Sub. Optics. Med. Laser destroyed. Sub. Monowheel destroyed. Wheel destroyed. The unstable cave ceiling collapses. Acquired Wheel. Acquired Lgt. Ion Engine. Subatomizers dissect the Sub. Optics. Sub. Laser falls loose from the Twisted Machinery. Sub. Power Source falls loose from the Twisted Machinery. System corrupted: Heat flow error (+295). Com. Wheel destroyed. Lgt. Ion Engine destroyed. Acquired Sub. Laser. Map ----- +----------------------------------------------------+ | ???????????????? "## ######## | | ?????????????????# # # # # | | ?????????????????## &%& % | | ??????????????????# # # ! # | | ??????????????????? ##### ## # | | ??????????????????## ????## ####### | | ??????????????????# ???# #?????# | | ??????????????????# ##?## ## #????? | | ???????????????????# ## ####????? | | ??????????????????## ## #?????? % | | ?????????????????## ##????? | | ?????????????????# ##???? | | ????????????????# ###? | | ??????????????# ### ### % | | ??????????????## #??# ##### ##? | | ???????????????## ###### ###? ???? | | ????????????????## ?## ???? | | ?????????????????##### ???? | | ????????????????####"" #### # ????? | | ????????????????# """" ##???##? #?????? | | ????????????????" """" ##?????????????? | | ????????????????"""""" ##????????????? | | ????????????????#"" " ## ##???????????? | | ????????????????##"" " ## #?####??????? | | ?????????????????## "" ## ## ## ##?????? | | ??????????????????## "@ R ## ##????? | | ??????????????????## "* ## ##???? | | ??????????????????# "" R #???? | | ?????????????????#""" ###???? | | ?????????????????# """" ##?????? | | ?????????????????# "### ##??????? | | ????????????????# ??######### ##???????? | | ???????????????# ??????????######????????? | | ???????????????# ????????????????????????? | | ???????????????##### ????????????????????????? | | ???????????????????###????????????????????????? | | ??????????????????????????????????????????????? | | ??????????????????????????????????????????????? | | ??????????????????????????????????????????????? | | ??????????????????????????????????????????????? | | ??????????????????????????????????????????????? | | ??????????????????????????????????????????????? | | ??????????????????????????????????????????????? | | ??????????????????????????????????????????????? | | ??????????????????????????????????????????????? | | ??????????????????????????????????????????????? | | ??????????????????????????????????????????????? | | ??????????????????????????????????????????????? | | ??????????????????????????????????????????????? | | ??????????????????????????????????????????????? | +----------------------------------------------------+ Best States ------------- Heat Dissipation 25 Energy Generation 10 Energy Capacity 250 Matter Stores 284 Matter Capacity 300 Sight Range 16 Terrain Scan Range 16 Terrain Scan Density 10 Evasion (%) 42 Item Schematics ----------------- None Robot Schematics ------------------ None Fabricated ------------ Nothing Alien Tech Used ----------------- None Achievements -------------- None Challenges ------------ None Game ------ Seed ExoskeletonResetAirjet Manual? 0 Play Time 00:14:56 Cumulative 133.9 hours Start 2024.08.10 @ 22:11:43 End 2024.08.10 @ 22:23:16 Sessions 1 Manual Loads 0 Difficulty Rogue Special Mode None Game No. 130 Rogue 121 Adventurer 9 Explorer 0 Win Type - Total 0 Types 0/0/0/0/0/0/0/0/0 Lore% 37 Gallery% 61 Achievement% 48 Wizard Run 0 Options --------- Layout 1 ASCII 0 Keyboard 0 Movement Numpad Keybinds 0 Fullscreen 1 Font 24/Smallcaps Map View 50x35 Zoom Use 0% Tactical HUD 0 Map Filters NONE Filters NONE Steam 1 RUN: 084d6b86-6f72-48e3-86e9-ee3f7ba98c5a